[Event "*** Titled Tuesday Blitz"]
[Site "Chess.com"]
[Date "2018.12.04"]
[Round "6"]
[White "silverback96"]
[Black "Kawhi_Leonard2"]
[Result "1-0"]
[WhiteElo "2155"]
[BlackElo "2276"]
[TimeControl "180+2"]
[EndTime "14:20:30 PST"]
[Termination "silverback96 won by resignation"]

1. d4 {[%clk 0:03:01.9]} 1... Nf6 {[%clk 0:03:00.5]} 2. c4 {[%clk 0:03:03.4]}
2... c5 {[%clk 0:03:01.4]} 3. d5 {[%clk 0:03:04.2]} 3... e6 {[%clk 0:03:02.8]}
4. Nc3 {[%clk 0:03:04.9]} 4... exd5 {[%clk 0:03:04.5]} 5. cxd5 {[%clk
0:03:06.4]} 5... d6 {[%clk 0:03:06.4]} 6. Nf3 {[%clk 0:03:08.3]} 6... g6 {[%clk
0:03:08.3]} 7. g3 {[%clk 0:03:10.2]} 7... Bg7 {[%clk 0:03:09.9]} 8. Bg2 {[%clk
0:03:12.1]} 8... O-O {[%clk 0:03:11.3]} 9. O-O {[%clk 0:03:13.5]} 9... a6 {[%clk
0:03:13]} 10. a4 {[%clk 0:03:13.6]} 10... Nbd7 {[%clk 0:03:14.6]} 11. Bf4 {[%clk
0:03:14.7]} 11... Qe7 {[%clk 0:03:15.4]} 12. Rb1 {[%clk 0:03:06.8]} 12... Nh5
{[%clk 0:03:07.7]} 13. Bg5 {[%clk 0:03:06.4]} 13... f6 {[%clk 0:03:08.8]} 14.
Bd2 {[%clk 0:03:04.5]} 14... f5 {[%clk 0:03:09.6]} 15. Bg5 {[%clk 0:03:05.4]}
15... Qf7 {[%clk 0:03:03.4]} 16. Qd2 {[%clk 0:02:56.9]} 16... Ne5 {[%clk
0:02:57.5]} 17. b4 {[%clk 0:02:44.9]} 17... cxb4 {[%clk 0:02:52.3]} 18. Rxb4
{[%clk 0:02:39.5]} 18... Re8 {[%clk 0:02:29.2]} 19. Nd4 {[%clk 0:02:22.3]} 19...
a5 {[%clk 0:02:11.2]} 20. Rbb1 {[%clk 0:02:10.1]} 20... h6 {[%clk 0:01:59.4]}
21. Bxh6 {[%clk 0:01:50.7]} 21... Nc4 {[%clk 0:01:59.4]} 22. Qa2 {[%clk
0:01:44.1]} 22... Bxd4 {[%clk 0:01:24.3]} 23. Qxc4 {[%clk 0:01:43.3]} 23... Be5
{[%clk 0:01:19.4]} 24. Nb5 {[%clk 0:01:43.1]} 24... Bd7 {[%clk 0:01:13]} 25. f4
{[%clk 0:01:27.6]} 25... Rac8 {[%clk 0:01:07.5]} 26. Qd3 {[%clk 0:01:28.1]}
26... Bh8 {[%clk 0:01:05.7]} 27. Nxd6 {[%clk 0:01:27.3]} 27... Qe7 {[%clk
0:00:53]} 28. Nxe8 {[%clk 0:01:24.9]} 28... Rxe8 {[%clk 0:00:53.5]} 29. Bg5
{[%clk 0:01:21.9]} 29... Qc5+ {[%clk 0:00:43.7]} 30. Kh1 {[%clk 0:01:17.1]}
30... Re3 {[%clk 0:00:35.5]} 31. Qd2 {[%clk 0:01:10.1]} 31... Bc3 {[%clk
0:00:33.8]} 32. Qc1 {[%clk 0:01:05.3]} 32... Bxa4 {[%clk 0:00:18.6]} 33. Rxb7
{[%clk 0:01:04.4]} 33... Be8 {[%clk 0:00:17.8]} 34. d6 {[%clk 0:01:01.9]} 34...
Qxd6 {[%clk 0:00:18.7]} 35. Qxe3 {[%clk 0:01:01.6]} 1-0

[Event "*** Titled Tuesday Blitz"]
[Site "Chess.com"]
[Date "2018.12.04"]
[Round "6"]
[White "Schachmalanders"]
[Black "PawnEatingZombie"]
[Result "1-0"]
[WhiteElo "2303"]
[BlackElo "2203"]
[TimeControl "180+2"]
[EndTime "14:20:41 PST"]
[Termination "Schachmalanders won by resignation"]

1. e4 {[%clk 0:03:01.9]} 1... e6 {[%clk 0:03:00.4]} 2. d4 {[%clk 0:03:02.6]}
2... d5 {[%clk 0:03:01.8]} 3. exd5 {[%clk 0:03:04]} 3... exd5 {[%clk 0:03:02.3]}
4. Bd3 {[%clk 0:03:05.6]} 4... Nf6 {[%clk 0:03:02.9]} 5. Nf3 {[%clk 0:03:07.5]}
5... c5 {[%clk 0:03:04]} 6. O-O {[%clk 0:03:04.6]} 6... Be7 {[%clk 0:03:05]} 7.
dxc5 {[%clk 0:03:05.3]} 7... O-O {[%clk 0:03:05.7]} 8. c3 {[%clk 0:03:05.3]}
8... Bxc5 {[%clk 0:03:06.5]} 9. Bg5 {[%clk 0:03:06.4]} 9... h6 {[%clk
0:03:07.8]} 10. Bh4 {[%clk 0:03:07.1]} 10... g5 {[%clk 0:03:08.7]} 11. Bg3
{[%clk 0:03:07.8]} 11... Ne4 {[%clk 0:03:09.1]} 12. Be5 {[%clk 0:03:05.5]} 12...
Nc6 {[%clk 0:03:05.1]} 13. Nbd2 {[%clk 0:03:02.9]} 13... Nxf2 {[%clk 0:02:37.7]}
14. Rxf2 {[%clk 0:02:57.7]} 14... Bxf2+ {[%clk 0:02:38.4]} 15. Kxf2 {[%clk
0:02:58.6]} 15... Nxe5 {[%clk 0:02:39.8]} 16. Nxe5 {[%clk 0:02:58.5]} 16... Qf6+
{[%clk 0:02:40.9]} 17. Ndf3 {[%clk 0:02:29.5]} 17... g4 {[%clk 0:02:41.6]} 18.
Qe2 {[%clk 0:02:23.7]} 18... gxf3 {[%clk 0:02:41.1]} 19. gxf3 {[%clk 0:02:25.6]}
19... Bf5 {[%clk 0:02:36.1]} 20. Rg1+ {[%clk 0:02:24.1]} 20... Kh8 {[%clk
0:02:28.5]} 21. Bxf5 {[%clk 0:02:24.9]} 21... Qxf5 {[%clk 0:02:28.3]} 22. Qe3
{[%clk 0:02:25.2]} 22... Kh7 {[%clk 0:02:25.3]} 23. Ng4 {[%clk 0:02:16.9]} 23...
Qg5 {[%clk 0:02:11.6]} 24. Qd4 {[%clk 0:01:23.9]} 24... f6 {[%clk 0:01:53.4]}
25. Qd3+ {[%clk 0:01:12.2]} 25... Kh8 {[%clk 0:01:48.2]} 26. Rg3 {[%clk
0:00:58.7]} 26... Rad8 {[%clk 0:00:55]} 27. Rh3 {[%clk 0:00:55.7]} 27... h5
{[%clk 0:00:55.2]} 28. Qd4 {[%clk 0:00:33.1]} 28... Kg7 {[%clk 0:00:47.4]} 29.
Ne3 {[%clk 0:00:32]} 29... Qe5 {[%clk 0:00:31.1]} 30. Qxa7 {[%clk 0:00:28.1]}
30... Rfe8 {[%clk 0:00:26.8]} 31. Qxb7+ {[%clk 0:00:23.7]} 31... Re7 {[%clk
0:00:25.9]} 32. Nf5+ {[%clk 0:00:24.4]} 1-0

[Event "*** Titled Tuesday Blitz"]
[Site "Chess.com"]
[Date "2018.12.04"]
[Round "6"]
[White "JonahWillow"]
[Black "afgano29"]
[Result "1-0"]
[WhiteElo "2686"]
[BlackElo "2627"]
[TimeControl "180+2"]
[EndTime "14:20:42 PST"]
[Termination "JonahWillow won by resignation"]

1. e4 {[%clk 0:02:58.7]} 1... c5 {[%clk 0:03:00.3]} 2. Nf3 {[%clk 0:02:59.5]}
2... Nc6 {[%clk 0:03:01.8]} 3. d4 {[%clk 0:03:01.2]} 3... cxd4 {[%clk
0:03:03.7]} 4. Nxd4 {[%clk 0:03:02.8]} 4... e5 {[%clk 0:03:04.5]} 5. Nb5 {[%clk
0:03:03.6]} 5... d6 {[%clk 0:03:05.6]} 6. N1c3 {[%clk 0:03:05.2]} 6... a6 {[%clk
0:03:06.6]} 7. Na3 {[%clk 0:03:06.9]} 7... Be7 {[%clk 0:03:07.9]} 8. Nc4 {[%clk
0:03:07.6]} 8... b5 {[%clk 0:03:09.5]} 9. Ne3 {[%clk 0:03:05.6]} 9... Nf6 {[%clk
0:03:10.4]} 10. g3 {[%clk 0:02:56.9]} 10... h5 {[%clk 0:03:11.3]} 11. h3 {[%clk
0:02:53.7]} 11... h4 {[%clk 0:02:58.1]} 12. g4 {[%clk 0:02:54.4]} 12... Nd4
{[%clk 0:02:56.1]} 13. Bg2 {[%clk 0:02:54.7]} 13... g6 {[%clk 0:02:54.1]} 14.
O-O {[%clk 0:02:54]} 14... Nh7 {[%clk 0:02:46.4]} 15. Ncd5 {[%clk 0:02:53.2]}
15... Bg5 {[%clk 0:02:47.4]} 16. c3 {[%clk 0:02:53.9]} 16... Ne6 {[%clk
0:02:48.1]} 17. a4 {[%clk 0:02:49.2]} 17... Rb8 {[%clk 0:02:46.1]} 18. axb5
{[%clk 0:02:49.9]} 18... axb5 {[%clk 0:02:48]} 19. Ra7 {[%clk 0:02:49.7]} 19...
O-O {[%clk 0:02:47.1]} 20. Nc2 {[%clk 0:02:38.8]} 20... Bb7 {[%clk 0:02:42.3]}
21. Ncb4 {[%clk 0:02:24.3]} 21... Bxc1 {[%clk 0:02:27.2]} 22. Qxc1 {[%clk
0:02:26.2]} 22... Nhg5 {[%clk 0:02:26.4]} 23. Qe3 {[%clk 0:02:17.6]} 23... Re8
{[%clk 0:02:08.2]} 24. Rd1 {[%clk 0:02:11.7]} 24... Nf4 {[%clk 0:01:55.2]} 25.
Nxf4 {[%clk 0:02:04.8]} 25... exf4 {[%clk 0:01:54.8]} 26. Qxf4 {[%clk
0:02:06.7]} 26... Bxe4 {[%clk 0:01:53]} 27. Rxd6 {[%clk 0:01:37.3]} 27... Qxd6
{[%clk 0:00:52.8]} 28. Qxd6 {[%clk 0:01:28.2]} 28... Rbd8 {[%clk 0:00:53.4]} 29.
Rd7 {[%clk 0:00:59.3]} 29... Ra8 {[%clk 0:00:46.6]} 30. Qf4 {[%clk 0:00:27.3]}
30... Ra1+ {[%clk 0:00:43.8]} 31. Kh2 {[%clk 0:00:21.7]} 31... Bxg2 {[%clk
0:00:44.7]} 32. Kxg2 {[%clk 0:00:19.7]} 32... Rg1+ {[%clk 0:00:44.6]} 33. Kh2
{[%clk 0:00:15.9]} 33... Ree1 {[%clk 0:00:45.5]} 34. Qxg5 {[%clk 0:00:15.6]} 1-0

[Event "*** Titled Tuesday Blitz"]
[Site "Chess.com"]
[Date "2018.12.04"]
[Round "6"]
[White "MFguimaraes"]
[Black "MartinNeu"]
[Result "0-1"]
[WhiteElo "2344"]
[BlackElo "2474"]
[TimeControl "180+2"]
[EndTime "14:20:46 PST"]
[Termination "MartinNeu won by resignation"]

1. e4 {[%clk 0:02:11.6]} 1... c5 {[%clk 0:03:00.2]} 2. Nf3 {[%clk 0:00:42.9]}
2... d6 {[%clk 0:02:57.8]} 3. Bb5+ {[%clk 0:00:40.7]} 3... Nd7 {[%clk
0:02:58.3]} 4. a4 {[%clk 0:00:06.2]} 4... Nf6 {[%clk 0:02:56.6]} 5. d3 {[%clk
0:00:06.8]} 5... e6 {[%clk 0:02:56]} 6. Nc3 {[%clk 0:00:07.2]} 6... a6 {[%clk
0:02:56.6]} 7. Bc4 {[%clk 0:00:08]} 7... Be7 {[%clk 0:02:58.1]} 8. O-O {[%clk
0:00:09.3]} 8... O-O {[%clk 0:02:59.4]} 9. Re1 {[%clk 0:00:10.8]} 9... Nb8
{[%clk 0:03:00.3]} 10. e5 {[%clk 0:00:12.1]} 10... Ne8 {[%clk 0:02:58.8]} 11.
exd6 {[%clk 0:00:13.1]} 11... Nxd6 {[%clk 0:02:59.8]} 12. Bb3 {[%clk 0:00:14.3]}
12... Nc6 {[%clk 0:03:00.3]} 13. Be3 {[%clk 0:00:15.4]} 13... b6 {[%clk
0:03:01]} 14. Ne4 {[%clk 0:00:16.5]} 14... Nxe4 {[%clk 0:03:00.1]} 15. dxe4
{[%clk 0:00:17.6]} 15... Qc7 {[%clk 0:03:01.6]} 16. Qe2 {[%clk 0:00:17.7]} 16...
Na5 {[%clk 0:03:00]} 17. Ba2 {[%clk 0:00:18.1]} 17... Bb7 {[%clk 0:03:00.7]} 18.
Bg5 {[%clk 0:00:18.7]} 18... Bxg5 {[%clk 0:02:58.8]} 19. Nxg5 {[%clk 0:00:19.9]}
19... Qe5 {[%clk 0:02:59.9]} 20. Nf3 {[%clk 0:00:12.9]} 20... Qxb2 {[%clk
0:02:59.2]} 21. Reb1 {[%clk 0:00:13.7]} 21... Qc3 {[%clk 0:02:56.4]} 22. Bb3
{[%clk 0:00:13.1]} 22... Rad8 {[%clk 0:02:51.3]} 23. Qe3 {[%clk 0:00:12.7]}
23... Qxe3 {[%clk 0:02:48.5]} 24. fxe3 {[%clk 0:00:14.6]} 24... Bxe4 {[%clk
0:02:49.7]} 25. Ne5 {[%clk 0:00:16.1]} 25... Rd6 {[%clk 0:02:24.6]} 26. Rd1
{[%clk 0:00:16.4]} 26... Rfd8 {[%clk 0:02:18.7]} 27. Rxd6 {[%clk 0:00:17.5]}
27... Rxd6 {[%clk 0:02:19.9]} 28. Nf3 {[%clk 0:00:17.9]} 28... c4 {[%clk
0:02:18.6]} 29. Ba2 {[%clk 0:00:18.6]} 29... Bxc2 {[%clk 0:02:19.4]} 30. Rc1
{[%clk 0:00:19.9]} 30... Rd1+ {[%clk 0:02:12.8]} 31. Rxd1 {[%clk 0:00:20.6]}
31... Bxd1 {[%clk 0:02:14.7]} 32. Kf2 {[%clk 0:00:22.1]} 32... Bb3 {[%clk
0:02:08.3]} 33. Bb1 {[%clk 0:00:22.7]} 33... c3 {[%clk 0:02:09.6]} 34. Nd4
{[%clk 0:00:23.4]} 34... Bxa4 {[%clk 0:02:10.6]} 35. Ke2 {[%clk 0:00:24]} 35...
e5 {[%clk 0:02:11.3]} 36. Nc2 {[%clk 0:00:24.8]} 36... Bb5+ {[%clk 0:02:08.6]}
37. Ke1 {[%clk 0:00:25.3]} 37... Bd3 {[%clk 0:02:09.6]} 38. Kd1 {[%clk 0:00:25]}
38... Nc4 {[%clk 0:02:09.1]} 39. Ba2 {[%clk 0:00:26.4]} 39... b5 {[%clk
0:02:07.7]} 40. Nb4 {[%clk 0:00:24.5]} 40... Nxe3+ {[%clk 0:02:06.9]} 41. Kc1
{[%clk 0:00:25.9]} 41... Bc4 {[%clk 0:02:05.4]} 42. Bxc4 {[%clk 0:00:25.9]}
42... Nxc4 {[%clk 0:02:05.8]} 43. Nxa6 {[%clk 0:00:26.8]} 43... Ne3 {[%clk
0:02:02.2]} 44. g3 {[%clk 0:00:27.3]} 44... f5 {[%clk 0:02:03]} 45. Nc5 {[%clk
0:00:27.5]} 45... f4 {[%clk 0:02:03.7]} 46. gxf4 {[%clk 0:00:28.9]} 46... exf4
{[%clk 0:02:04.8]} 47. Nd3 {[%clk 0:00:30.8]} 47... f3 {[%clk 0:02:06]} 48. Nf2
{[%clk 0:00:31.9]} 48... b4 {[%clk 0:02:06.9]} 49. Kb1 {[%clk 0:00:32.6]} 49...
b3 {[%clk 0:02:07.9]} 50. Kc1 {[%clk 0:00:33.4]} 50... Kf7 {[%clk 0:02:06]} 51.
h4 {[%clk 0:00:34.2]} 51... Ke6 {[%clk 0:02:06.5]} 52. Kb1 {[%clk 0:00:35.7]}
52... Kd5 {[%clk 0:02:07.3]} 53. Ka1 {[%clk 0:00:36.9]} 53... Kc4 {[%clk
0:02:04.7]} 54. Ne4 {[%clk 0:00:37.6]} 54... Kd3 {[%clk 0:02:02.5]} 55. Ng3
{[%clk 0:00:34.7]} 55... Kc2 {[%clk 0:02:02.3]} 0-1

[Event "*** Titled Tuesday Blitz"]
[Site "Chess.com"]
[Date "2018.12.04"]
[Round "6"]
[White "TigranLPetrosyan"]
[Black "GMG"]
[Result "1-0"]
[WhiteElo "2816"]
[BlackElo "2680"]
[TimeControl "180+2"]
[EndTime "14:20:49 PST"]
[Termination "TigranLPetrosyan won by checkmate"]

1. e4 {[%clk 0:02:59.4]} 1... d5 {[%clk 0:02:59.8]} 2. exd5 {[%clk 0:02:57.3]}
2... Qxd5 {[%clk 0:03:00.8]} 3. Nc3 {[%clk 0:02:54.3]} 3... Qa5 {[%clk
0:03:01.8]} 4. d4 {[%clk 0:02:49.8]} 4... Nf6 {[%clk 0:03:03.2]} 5. Nf3 {[%clk
0:02:50.7]} 5... c6 {[%clk 0:03:04.7]} 6. Bc4 {[%clk 0:02:50.4]} 6... Bf5 {[%clk
0:03:06]} 7. Ne5 {[%clk 0:02:50.9]} 7... e6 {[%clk 0:03:06.6]} 8. g4 {[%clk
0:02:52]} 8... Bg6 {[%clk 0:03:08.1]} 9. Bd2 {[%clk 0:02:45.8]} 9... Nbd7 {[%clk
0:02:56.6]} 10. Nd5 {[%clk 0:02:37.4]} 10... Qd8 {[%clk 0:02:48.3]} 11. Nxf6+
{[%clk 0:02:37.9]} 11... gxf6 {[%clk 0:02:44.4]} 12. Nxg6 {[%clk 0:02:38.6]}
12... hxg6 {[%clk 0:02:45.3]} 13. c3 {[%clk 0:02:35.7]} 13... f5 {[%clk
0:02:34.2]} 14. Qf3 {[%clk 0:02:33.2]} 14... Bh6 {[%clk 0:02:19.7]} 15. Bxh6
{[%clk 0:02:29.5]} 15... Rxh6 {[%clk 0:02:21.6]} 16. gxf5 {[%clk 0:02:30.9]}
16... gxf5 {[%clk 0:02:21.9]} 17. O-O-O {[%clk 0:02:31.9]} 17... Qh4 {[%clk
0:02:01.9]} 18. b4 {[%clk 0:02:04.1]} 18... a6 {[%clk 0:01:52]} 19. Kb2 {[%clk
0:02:01.3]} 19... Nf6 {[%clk 0:01:51.7]} 20. Rde1 {[%clk 0:01:51.2]} 20... Kf8
{[%clk 0:01:51.1]} 21. Rhg1 {[%clk 0:01:46.2]} 21... Ng4 {[%clk 0:01:41.3]} 22.
Rg3 {[%clk 0:01:29.2]} 22... Qxh2 {[%clk 0:01:36.2]} 23. Re2 {[%clk 0:01:27.6]}
23... Re8 {[%clk 0:01:18.5]} 24. Kb3 {[%clk 0:01:19.1]} 24... Qh1 {[%clk
0:01:12.3]} 25. Qf4 {[%clk 0:01:16.8]} 25... Qd1+ {[%clk 0:00:53.6]} 26. Rc2
{[%clk 0:01:07.7]} 26... Rh1 {[%clk 0:00:42.7]} 27. Be2 {[%clk 0:01:06.9]} 27...
Qa1 {[%clk 0:00:22.2]} 28. Bxg4 {[%clk 0:01:05.5]} 28... Rb1+ {[%clk 0:00:22.6]}
29. Ka3 {[%clk 0:01:06.5]} 29... fxg4 {[%clk 0:00:18]} 30. Rxg4 {[%clk
0:01:07.2]} 30... a5 {[%clk 0:00:17.3]} 31. Qd6+ {[%clk 0:00:58.5]} 31... Re7
{[%clk 0:00:18.4]} 32. f3 {[%clk 0:00:39.8]} 32... axb4+ {[%clk 0:00:18.6]} 33.
Ka4 {[%clk 0:00:33]} 33... b3 {[%clk 0:00:17.9]} 34. Qd8+ {[%clk 0:00:29.4]}
34... Re8 {[%clk 0:00:18.7]} 35. Rg8+ {[%clk 0:00:31.3]} 35... Kxg8 {[%clk
0:00:18]} 36. Qxe8+ {[%clk 0:00:33]} 36... Kg7 {[%clk 0:00:19.3]} 37. Rg2+
{[%clk 0:00:34.6]} 37... Kf6 {[%clk 0:00:20.8]} 38. Qd8+ {[%clk 0:00:35.7]}
38... Kf5 {[%clk 0:00:20.6]} 39. Qg5# {[%clk 0:00:37.3]} 1-0

[Event "*** Titled Tuesday Blitz"]
[Site "Chess.com"]
[Date "2018.12.04"]
[Round "6"]
[White "amiralfio"]
[Black "vpantev"]
[Result "1-0"]
[WhiteElo "2428"]
[BlackElo "2609"]
[TimeControl "180+2"]
[EndTime "14:20:51 PST"]
[Termination "amiralfio won by resignation"]

1. d4 {[%clk 0:03:01.9]} 1... Nf6 {[%clk 0:03:00.2]} 2. Nf3 {[%clk 0:03:01.6]}
2... e6 {[%clk 0:03:00.7]} 3. c4 {[%clk 0:03:02.5]} 3... Bb4+ {[%clk 0:02:58.9]}
4. Bd2 {[%clk 0:03:02.6]} 4... c5 {[%clk 0:02:59.4]} 5. g3 {[%clk 0:02:48.9]}
5... Qb6 {[%clk 0:02:58.1]} 6. dxc5 {[%clk 0:02:38.7]} 6... Bxc5 {[%clk
0:02:55]} 7. e3 {[%clk 0:02:39.1]} 7... Qxb2 {[%clk 0:02:50]} 8. Nc3 {[%clk
0:02:38.9]} 8... Qb6 {[%clk 0:02:38.4]} 9. Na4 {[%clk 0:02:35.8]} 9... Qc7
{[%clk 0:02:39.5]} 10. Nxc5 {[%clk 0:02:35.9]} 10... Qxc5 {[%clk 0:02:40.5]} 11.
Bg2 {[%clk 0:02:37.4]} 11... O-O {[%clk 0:02:37]} 12. O-O {[%clk 0:02:38.3]}
12... Qxc4 {[%clk 0:02:36.6]} 13. Rc1 {[%clk 0:02:33.8]} 13... Qxa2 {[%clk
0:02:34]} 14. Bc3 {[%clk 0:02:33.8]} 14... Nd5 {[%clk 0:02:25.1]} 15. Ba1 {[%clk
0:02:33.8]} 15... Nc6 {[%clk 0:02:16.9]} 16. Ng5 {[%clk 0:02:34.1]} 16... h6
{[%clk 0:02:04.9]} 17. Ne4 {[%clk 0:01:17.3]} 17... Qa3 {[%clk 0:01:48.7]} 18.
Qg4 {[%clk 0:01:15.6]} 18... f6 {[%clk 0:01:40]} 19. Nc5 {[%clk 0:01:11.1]}
19... b6 {[%clk 0:01:26.5]} 20. Nxd7 {[%clk 0:00:36.5]} 20... Bxd7 {[%clk
0:01:20.8]} 21. Bxd5 {[%clk 0:00:37.8]} 21... exd5 {[%clk 0:00:24.7]} 22. Qxd7
{[%clk 0:00:34]} 22... Rad8 {[%clk 0:00:11.4]} 23. Qxc6 {[%clk 0:00:32.8]} 23...
Qe7 {[%clk 0:00:11]} 24. Rfd1 {[%clk 0:00:31.5]} 24... Kh8 {[%clk 0:00:08.9]}
25. h4 {[%clk 0:00:32.2]} 25... h5 {[%clk 0:00:07.9]} 26. Rxd5 {[%clk
0:00:29.2]} 26... Rc8 {[%clk 0:00:08.9]} 27. Rxh5+ {[%clk 0:00:30.1]} 27... Kg8
{[%clk 0:00:10]} 28. Qd5+ {[%clk 0:00:30.8]} 28... Qf7 {[%clk 0:00:11.4]} 29.
Rxc8 {[%clk 0:00:30.8]} 29... Rxc8 {[%clk 0:00:12.2]} 30. Rh8+ {[%clk
0:00:31.8]} 30... Kxh8 {[%clk 0:00:13]} 31. Qxf7 {[%clk 0:00:33]} 31... Rc1+
{[%clk 0:00:14.5]} 32. Kg2 {[%clk 0:00:34.2]} 32... Rxa1 {[%clk 0:00:16.4]} 33.
Kf3 {[%clk 0:00:33.6]} 33... b5 {[%clk 0:00:17.4]} 34. Kg4 {[%clk 0:00:35.1]}
34... b4 {[%clk 0:00:17.8]} 35. Kf5 {[%clk 0:00:36.4]} 35... Ra5+ {[%clk
0:00:18.7]} 36. Kg6 {[%clk 0:00:37.7]} 1-0

[Event "*** Titled Tuesday Blitz"]
[Site "Chess.com"]
[Date "2018.12.04"]
[Round "6"]
[White "DishonorOnYourCow"]
[Black "SerGo055"]
[Result "0-1"]
[WhiteElo "2234"]
[BlackElo "2442"]
[TimeControl "180+2"]
[EndTime "14:20:52 PST"]
[Termination "SerGo055 won on time"]

1. d4 {[%clk 0:02:59.1]} 1... Nf6 {[%clk 0:02:58.4]} 2. c4 {[%clk 0:02:59.6]}
2... e6 {[%clk 0:02:58.7]} 3. Nc3 {[%clk 0:03:00.3]} 3... d5 {[%clk 0:02:57.9]}
4. cxd5 {[%clk 0:03:00.8]} 4... exd5 {[%clk 0:02:54.1]} 5. Bg5 {[%clk
0:03:01.4]} 5... c6 {[%clk 0:02:54.9]} 6. e3 {[%clk 0:03:01.8]} 6... Bf5 {[%clk
0:02:54.5]} 7. Qf3 {[%clk 0:02:56.8]} 7... Bg6 {[%clk 0:02:50.8]} 8. Bxf6 {[%clk
0:02:57.5]} 8... Qxf6 {[%clk 0:02:50.7]} 9. Qxf6 {[%clk 0:02:58.1]} 9... gxf6
{[%clk 0:02:51.8]} 10. h4 {[%clk 0:02:51.5]} 10... h5 {[%clk 0:02:51.4]} 11. f3
{[%clk 0:02:45.4]} 11... Bd6 {[%clk 0:02:42.6]} 12. Kf2 {[%clk 0:02:44.9]} 12...
Nd7 {[%clk 0:02:35.8]} 13. g4 {[%clk 0:01:59.8]} 13... O-O-O {[%clk 0:02:17.9]}
14. Rc1 {[%clk 0:01:34.8]} 14... Kb8 {[%clk 0:02:12.1]} 15. Na4 {[%clk
0:01:35.5]} 15... Rdg8 {[%clk 0:02:05.3]} 16. Bg2 {[%clk 0:01:26.3]} 16... hxg4
{[%clk 0:01:48.4]} 17. fxg4 {[%clk 0:01:22.2]} 17... Be4 {[%clk 0:01:45.9]} 18.
Bxe4 {[%clk 0:00:49.5]} 18... dxe4 {[%clk 0:01:45.4]} 19. Nc5 {[%clk 0:00:47.3]}
19... Bxc5 {[%clk 0:01:32.5]} 20. dxc5 {[%clk 0:00:47.5]} 20... Ne5 {[%clk
0:01:34.1]} 21. Ne2 {[%clk 0:00:41.6]} 21... Nd3+ {[%clk 0:01:34.5]} 22. Kg3
{[%clk 0:00:40.5]} 22... Nxc1 {[%clk 0:01:35.6]} 23. Rxc1 {[%clk 0:00:41.4]}
23... f5 {[%clk 0:01:29.6]} 24. g5 {[%clk 0:00:40.9]} 24... f6 {[%clk
0:01:30.7]} 25. Kf4 {[%clk 0:00:34.2]} 25... Rxh4+ {[%clk 0:01:31]} 26. Kxf5
{[%clk 0:00:35.3]} 26... fxg5 {[%clk 0:01:27.6]} 27. Rg1 {[%clk 0:00:33.9]}
27... Rf8+ {[%clk 0:01:27.9]} 28. Ke5 {[%clk 0:00:30.8]} 28... Re8+ {[%clk
0:01:14.9]} 29. Kf5 {[%clk 0:00:21]} 29... Rh2 {[%clk 0:01:16.8]} 30. Nd4 {[%clk
0:00:18]} 30... Rf2+ {[%clk 0:01:16.1]} 31. Kg6 {[%clk 0:00:18.6]} 31... g4
{[%clk 0:01:13.1]} 32. b4 {[%clk 0:00:07.9]} 32... g3 {[%clk 0:01:11.4]} 33. Kg7
{[%clk 0:00:07]} 33... g2 {[%clk 0:01:10.5]} 34. a4 {[%clk 0:00:06.3]} 34... a5
{[%clk 0:01:02.4]} 35. b5 {[%clk 0:00:05.8]} 35... Re5 {[%clk 0:01:02.9]} 36.
bxc6 {[%clk 0:00:05.7]} 36... Rxc5 {[%clk 0:01:01.7]} 37. cxb7 {[%clk
0:00:02.1]} 37... Rg5+ {[%clk 0:01:02]} 38. Kh6 {[%clk 0:00:02.9]} 38... Rg3
{[%clk 0:01:03.1]} 39. Rc1 {[%clk 0:00:03.2]} 39... Rf6+ {[%clk 0:01:00.4]} 0-1

[Event "*** Titled Tuesday Blitz"]
[Site "Chess.com"]
[Date "2018.12.04"]
[Round "6"]
[White "Berardino"]
[Black "baki83"]
[Result "1-0"]
[WhiteElo "2422"]
[BlackElo "2466"]
[TimeControl "180+2"]
[EndTime "14:21:10 PST"]
[Termination "Berardino won on time"]

1. d4 {[%clk 0:03:01.9]} 1... Nf6 {[%clk 0:03:00.3]} 2. c4 {[%clk 0:03:02.1]}
2... e6 {[%clk 0:03:01.7]} 3. Nc3 {[%clk 0:03:02.9]} 3... Bb4 {[%clk 0:03:02.8]}
4. e3 {[%clk 0:03:04.4]} 4... b6 {[%clk 0:03:02.8]} 5. Ne2 {[%clk 0:03:04.8]}
5... Ba6 {[%clk 0:02:59.6]} 6. Ng3 {[%clk 0:03:04.1]} 6... O-O {[%clk
0:02:54.1]} 7. e4 {[%clk 0:02:51.6]} 7... d5 {[%clk 0:02:35.6]} 8. e5 {[%clk
0:02:48.7]} 8... Ne4 {[%clk 0:02:34.5]} 9. Nxe4 {[%clk 0:02:34.2]} 9... dxe4
{[%clk 0:02:35.6]} 10. Be2 {[%clk 0:02:32.5]} 10... Nc6 {[%clk 0:02:25.1]} 11.
Be3 {[%clk 0:02:32.4]} 11... Na5 {[%clk 0:02:17.9]} 12. O-O {[%clk 0:02:01.1]}
12... Bxc3 {[%clk 0:02:11.3]} 13. bxc3 {[%clk 0:02:03]} 13... Bxc4 {[%clk
0:02:11]} 14. Bxc4 {[%clk 0:02:01.6]} 14... Nxc4 {[%clk 0:02:11.6]} 15. Qg4
{[%clk 0:02:02.5]} 15... Nxe3 {[%clk 0:01:23]} 16. fxe3 {[%clk 0:02:02.4]} 16...
Qd5 {[%clk 0:01:24.1]} 17. Rf4 {[%clk 0:01:55.7]} 17... Qc4 {[%clk 0:01:12.2]}
18. Rxe4 {[%clk 0:01:52.6]} 18... Qxc3 {[%clk 0:01:13]} 19. Rf1 {[%clk
0:01:53.6]} 19... c5 {[%clk 0:01:03.6]} 20. h3 {[%clk 0:01:07.3]} 20... Rac8
{[%clk 0:00:51.6]} 21. Qg5 {[%clk 0:01:05.9]} 21... h6 {[%clk 0:00:50.8]} 22.
Qh4 {[%clk 0:00:50.6]} 22... Qd3 {[%clk 0:00:50.8]} 23. Rf3 {[%clk 0:00:41.3]}
23... cxd4 {[%clk 0:00:46.5]} 24. exd4 {[%clk 0:00:41.3]} 24... Rc1+ {[%clk
0:00:46.1]} 25. Kh2 {[%clk 0:00:42.5]} 25... Qb1 {[%clk 0:00:42.5]} 26. Ref4
{[%clk 0:00:35.3]} 26... g5 {[%clk 0:00:31.4]} 27. Qg4 {[%clk 0:00:20]} 27...
Rh1+ {[%clk 0:00:25.3]} 28. Kg3 {[%clk 0:00:21.4]} 28... Qd1 {[%clk 0:00:12.4]}
29. Rf6 {[%clk 0:00:18.3]} 29... Kg7 {[%clk 0:00:12.9]} 30. Qh5 {[%clk
0:00:17.7]} 30... Qe1+ {[%clk 0:00:10.5]} 31. Rf2 {[%clk 0:00:18.3]} 31... Qe3+
{[%clk 0:00:10]} 32. R6f3 {[%clk 0:00:19.3]} 32... Qxd4 {[%clk 0:00:10.2]} 33.
Rxf7+ {[%clk 0:00:20.4]} 33... Rxf7 {[%clk 0:00:08.9]} 34. Qxf7+ {[%clk
0:00:21.7]} 1-0